{"text_format":"3","workbook":"xlsx","n_sheets":2,"sheets":["Viktminskningsöversikt","Beräkningar"],"not_rendered":{"charts":1,"defined_names":7},"read":"whole","date_system":"1900"}

{"sheet":"Viktminskningsöversikt","index":0,"n_rows":129,"n_cols":11,"rows_kept":129,"merged":[[0,5,0,9],[1,6,3,9]]}
[null,"MÅLVIKT","DIAGRAMVY",null,null," KATARINAS VIKTNEDGÅNG"]
[{"$nulls":6},"UPPFÖLJNING"]
[null,{"v":172,"d":"172.0"},"VECKOVIS",{"$nulls":7}," "]
[]
[]
[{"$nulls":10}," "]
{"$rows_empty":18}
[null,"DATUM","VIKT"]
[null,"2012-11-30",{"v":176,"d":"176.0"}]
[null,"2012-12-07",{"v":176,"d":"176.0"}]
[null,"2012-12-14",177.6]
[null,"2012-12-21",176.5]
[null,"2012-12-28",176.1]
[null,"2013-01-04",{"v":174,"d":"174.0"}]
[null,"2013-01-11",{"v":173,"d":"173.0"}]
[null,"2013-01-18",{"v":172,"d":"172.0"}]
[null,"2013-01-25",{"v":172,"d":"172.0"}]
[null,"2013-02-01",{"v":173,"d":"173.0"}]
[null,"2013-02-08",{"v":174,"d":"174.0"}]
[null,"2013-02-15",{"v":175,"d":"175.0"}]
[null,"2013-02-22"]
[null,"2013-03-01"]
[null,"2013-03-08"]
[null,"2013-03-15"]
[null,"2013-03-22"]
[null,"2013-03-29"]
[null,"2013-04-05"]
[null,"2013-04-12"]
[null,"2013-04-19"]
[null,"2013-04-26"]
[null,"2013-05-03"]
[null,"2013-05-10"]
[null,"2013-05-17"]
[null,"2013-05-24"]
[null,"2013-05-31"]
[null,"2013-06-07"]
[null,"2013-06-14"]
[null,"2013-06-21"]
[null,"2013-06-28"]
[null,"2013-07-05"]
[null,"2013-07-12"]
[null,"2013-07-19"]
[null,"2013-07-26"]
[null,"2013-08-02"]
[null,"2013-08-09"]
[null,"2013-08-16"]
[null,"2013-08-23"]
[null,"2013-08-30"]
[null,"2013-09-06"]
[null,"2013-09-13"]
[null,"2013-09-20"]
[null,"2013-09-27"]
[null,"2013-10-04"]
[null,"2013-10-11"]
[null,"2013-10-18"]
[null,"2013-10-25"]
[null,"2013-11-01"]
[null,"2013-11-08"]
[null,"2013-11-15"]
[null,"2013-11-22"]
[null,"2013-11-29"]
[null,"2013-12-06"]
[null,"2013-12-13"]
[null,"2013-12-20"]
[null,"2013-12-27"]
[null,"2014-01-03"]
[null,"2014-01-10"]
[null,"2014-01-17"]
[null,"2014-01-24"]
[null,"2014-01-31"]
[null,"2014-02-07"]
[null,"2014-02-14"]
[null,"2014-02-21"]
[null,"2014-02-28"]
[null,"2014-03-07"]
[null,"2014-03-14"]
[null,"2014-03-21"]
[null,"2014-03-28"]
[null,"2014-04-04"]
[null,"2014-04-11"]
[null,"2014-04-18"]
[null,"2014-04-25"]
[null,"2014-05-02"]
[null,"2014-05-09"]
[null,"2014-05-16"]
[null,"2014-05-23"]
[null,"2014-05-30"]
[null,"2014-06-06"]
[null,"2014-06-13"]
[null,"2014-06-20"]
[null,"2014-06-27"]
[null,"2014-07-04"]
[null,"2014-07-11"]
[null,"2014-07-18"]
[null,"2014-07-25"]
[null,"2014-08-01"]
[null,"2014-08-08"]
[null,"2014-08-15"]
[null,"2014-08-22"]
[null,"2014-08-29"]
[null,"2014-09-05"]
[null,"2014-09-12"]
[null,"2014-09-19"]
[null,"2014-09-26"]
[null,"2014-10-03"]
[null,"2014-10-10"]
[null,"2014-10-17"]
[null,"2014-10-24"]
[null,"2014-10-31"]
[null,"2014-11-07"]
[null,"2014-11-14"]
[null,"2014-11-21"]

{"sheet":"Beräkningar","index":1,"n_rows":108,"n_cols":17,"rows_kept":108,"hidden":true}
["*** Kalkylbladet ska behållas dolt ***"]
[]
[{"$f":"COUNTIF(A5:A108,FALSE)","v":13},"Perioder","Värden",{"$nulls":3},{"$f":"COUNTIF(H5:H28,\">\"&0)","v":4},"Perioder",null,"Värden"]
[null,"Vecka",null,null,true,null,null,"Månad","MÅNADSSLUT"]
[{"$f":"IF((Viktminskningsöversikt!C26=0)*(Viktminskningsöversikt!C25=0),TRUE)","v":false},{"$f":"IF(A5,0,IF(Viktminskningsöversikt!B26=0,Viktminskningsöversikt!B25+5,Viktminskningsöversikt!B26))","v":"2012-11-30"},{"$f":"Viktminskningsöversikt!C26","v":176},{"$f":"MIN(diagramperioder)","v":"2012-11-30"},{"$f":"IF($E$4,målvikt,NA())","v":172},null,null,{"$f":"DATE(YEAR(B5),MONTH(B5),1)","v":"2012-11-01"},{"$f":"EOMONTH(H5,0)","v":"2012-11-30"},{"$f":"IFERROR(AVERAGEIFS(vikttabell[VIKT],vikttabell[DATUM],\">=\"&H5,vikttabell[DATUM],\"<=\"&I5),NA())","v":176}]
[{"$f":"IF((Viktminskningsöversikt!C27=0)*(Viktminskningsöversikt!C26=0),TRUE)","v":false},{"$f":"IF(A6,0,IF(Viktminskningsöversikt!B27=0,Viktminskningsöversikt!B26+5,Viktminskningsöversikt!B27))","v":"2012-12-07"},{"$f":"Viktminskningsöversikt!C27","v":176},{"$f":"MAX(diagramperioder)","v":"2013-02-22"},172,null,null,{"$f":"IF(I5+1>MAX($B:$B),NA(),I5+1)","v":"2012-12-01"},"2012-12-31",{"$f":"IFERROR(AVERAGEIFS(vikttabell[VIKT],vikttabell[DATUM],\">=\"&H6,vikttabell[DATUM],\"<=\"&I6),NA())","v":176.55}]
[{"$f":"IF((Viktminskningsöversikt!C28=0)*(Viktminskningsöversikt!C27=0),TRUE)","v":false},{"$f":"IF(A7,0,IF(Viktminskningsöversikt!B28=0,Viktminskningsöversikt!B27+5,Viktminskningsöversikt!B28))","v":"2012-12-14"},{"$f":"Viktminskningsöversikt!C28","v":177.6},{"$nulls":4},{"$f":"IF(I6+1>MAX($B:$B),NA(),I6+1)","v":"2013-01-01"},"2013-01-31",{"$f":"IFERROR(AVERAGEIFS(vikttabell[VIKT],vikttabell[DATUM],\">=\"&H7,vikttabell[DATUM],\"<=\"&I7),NA())","v":172.75}]
[{"$f":"IF((Viktminskningsöversikt!C29=0)*(Viktminskningsöversikt!C28=0),TRUE)","v":false},{"$f":"IF(A8,0,IF(Viktminskningsöversikt!B29=0,Viktminskningsöversikt!B28+5,Viktminskningsöversikt!B29))","v":"2012-12-21"},{"$f":"Viktminskningsöversikt!C29","v":176.5},{"$nulls":4},"2013-02-01","2013-02-28",{"$f":"IFERROR(AVERAGEIFS(vikttabell[VIKT],vikttabell[DATUM],\">=\"&H8,vikttabell[DATUM],\"<=\"&I8),NA())","v":174}]
[{"$f":"IF((Viktminskningsöversikt!C30=0)*(Viktminskningsöversikt!C29=0),TRUE)","v":false},{"$f":"IF(A9,0,IF(Viktminskningsöversikt!B30=0,Viktminskningsöversikt!B29+5,Viktminskningsöversikt!B30))","v":"2012-12-28"},{"$f":"Viktminskningsöversikt!C30","v":176.1},{"$nulls":4},{"$error":"#N/A"},{"$error":"#N/A"},{"$f":"IFERROR(AVERAGEIFS(vikttabell[VIKT],vikttabell[DATUM],\">=\"&H9,vikttabell[DATUM],\"<=\"&I9),NA())","v":{"$error":"#N/A"}}]
[{"$f":"IF((Viktminskningsöversikt!C31=0)*(Viktminskningsöversikt!C30=0),TRUE)","v":false},{"$f":"IF(A10,0,IF(Viktminskningsöversikt!B31=0,Viktminskningsöversikt!B30+5,Viktminskningsöversikt!B31))","v":"2013-01-04"},{"$f":"Viktminskningsöversikt!C31","v":174},{"$nulls":4},{"$error":"#N/A"},{"$error":"#N/A"},{"$f":"IFERROR(AVERAGEIFS(vikttabell[VIKT],vikttabell[DATUM],\">=\"&H10,vikttabell[DATUM],\"<=\"&I10),NA())","v":{"$error":"#N/A"}}]
[{"$f":"IF((Viktminskningsöversikt!C32=0)*(Viktminskningsöversikt!C31=0),TRUE)","v":false},{"$f":"IF(A11,0,IF(Viktminskningsöversikt!B32=0,Viktminskningsöversikt!B31+5,Viktminskningsöversikt!B32))","v":"2013-01-11"},{"$f":"Viktminskningsöversikt!C32","v":173},{"$nulls":4},{"$error":"#N/A"},{"$error":"#N/A"},{"$f":"IFERROR(AVERAGEIFS(vikttabell[VIKT],vikttabell[DATUM],\">=\"&H11,vikttabell[DATUM],\"<=\"&I11),NA())","v":{"$error":"#N/A"}},{"$nulls":6},{"$f":"MAX($B:$B)","v":"2013-02-22"}]
[{"$f":"IF((Viktminskningsöversikt!C33=0)*(Viktminskningsöversikt!C32=0),TRUE)","v":false},{"$f":"IF(A12,0,IF(Viktminskningsöversikt!B33=0,Viktminskningsöversikt!B32+5,Viktminskningsöversikt!B33))","v":"2013-01-18"},{"$f":"Viktminskningsöversikt!C33","v":172},{"$nulls":4},{"$error":"#N/A"},{"$error":"#N/A"},{"$f":"IFERROR(AVERAGEIFS(vikttabell[VIKT],vikttabell[DATUM],\">=\"&H12,vikttabell[DATUM],\"<=\"&I12),NA())","v":{"$error":"#N/A"}}]
[{"$f":"IF((Viktminskningsöversikt!C34=0)*(Viktminskningsöversikt!C33=0),TRUE)","v":false},{"$f":"IF(A13,0,IF(Viktminskningsöversikt!B34=0,Viktminskningsöversikt!B33+5,Viktminskningsöversikt!B34))","v":"2013-01-25"},{"$f":"Viktminskningsöversikt!C34","v":172},{"$nulls":4},{"$error":"#N/A"},{"$error":"#N/A"},{"$f":"IFERROR(AVERAGEIFS(vikttabell[VIKT],vikttabell[DATUM],\">=\"&H13,vikttabell[DATUM],\"<=\"&I13),NA())","v":{"$error":"#N/A"}}]
[{"$f":"IF((Viktminskningsöversikt!C35=0)*(Viktminskningsöversikt!C34=0),TRUE)","v":false},{"$f":"IF(A14,0,IF(Viktminskningsöversikt!B35=0,Viktminskningsöversikt!B34+5,Viktminskningsöversikt!B35))","v":"2013-02-01"},{"$f":"Viktminskningsöversikt!C35","v":173},{"$nulls":4},{"$error":"#N/A"},{"$error":"#N/A"},{"$f":"IFERROR(AVERAGEIFS(vikttabell[VIKT],vikttabell[DATUM],\">=\"&H14,vikttabell[DATUM],\"<=\"&I14),NA())","v":{"$error":"#N/A"}}]
[{"$f":"IF((Viktminskningsöversikt!C36=0)*(Viktminskningsöversikt!C35=0),TRUE)","v":false},{"$f":"IF(A15,0,IF(Viktminskningsöversikt!B36=0,Viktminskningsöversikt!B35+5,Viktminskningsöversikt!B36))","v":"2013-02-08"},{"$f":"Viktminskningsöversikt!C36","v":174},{"$nulls":4},{"$error":"#N/A"},{"$error":"#N/A"},{"$f":"IFERROR(AVERAGEIFS(vikttabell[VIKT],vikttabell[DATUM],\">=\"&H15,vikttabell[DATUM],\"<=\"&I15),NA())","v":{"$error":"#N/A"}}]
[{"$f":"IF((Viktminskningsöversikt!C37=0)*(Viktminskningsöversikt!C36=0),TRUE)","v":false},{"$f":"IF(A16,0,IF(Viktminskningsöversikt!B37=0,Viktminskningsöversikt!B36+5,Viktminskningsöversikt!B37))","v":"2013-02-15"},{"$f":"Viktminskningsöversikt!C37","v":175},{"$nulls":4},{"$error":"#N/A"},{"$error":"#N/A"},{"$f":"IFERROR(AVERAGEIFS(vikttabell[VIKT],vikttabell[DATUM],\">=\"&H16,vikttabell[DATUM],\"<=\"&I16),NA())","v":{"$error":"#N/A"}}]
[{"$f":"IF((Viktminskningsöversikt!C38=0)*(Viktminskningsöversikt!C37=0),TRUE)","v":false},{"$f":"IF(A17,0,IF(Viktminskningsöversikt!B38=0,Viktminskningsöversikt!B37+5,Viktminskningsöversikt!B38))","v":"2013-02-22"},{"$f":"Viktminskningsöversikt!C38","v":0},{"$nulls":4},{"$error":"#N/A"},{"$error":"#N/A"},{"$f":"IFERROR(AVERAGEIFS(vikttabell[VIKT],vikttabell[DATUM],\">=\"&H17,vikttabell[DATUM],\"<=\"&I17),NA())","v":{"$error":"#N/A"}}]
[{"$f":"IF((Viktminskningsöversikt!C39=0)*(Viktminskningsöversikt!C38=0),TRUE)","v":true},{"$f":"IF(A18,0,IF(Viktminskningsöversikt!B39=0,Viktminskningsöversikt!B38+5,Viktminskningsöversikt!B39))","v":"00:00:00"},{"$f":"Viktminskningsöversikt!C39","v":0},{"$nulls":4},{"$error":"#N/A"},{"$error":"#N/A"},{"$f":"IFERROR(AVERAGEIFS(vikttabell[VIKT],vikttabell[DATUM],\">=\"&H18,vikttabell[DATUM],\"<=\"&I18),NA())","v":{"$error":"#N/A"}}]
[{"$f":"IF((Viktminskningsöversikt!C40=0)*(Viktminskningsöversikt!C39=0),TRUE)","v":true},{"$f":"IF(A19,0,IF(Viktminskningsöversikt!B40=0,Viktminskningsöversikt!B39+5,Viktminskningsöversikt!B40))","v":"00:00:00"},{"$f":"Viktminskningsöversikt!C40","v":0},{"$nulls":4},{"$error":"#N/A"},{"$error":"#N/A"},{"$f":"IFERROR(AVERAGEIFS(vikttabell[VIKT],vikttabell[DATUM],\">=\"&H19,vikttabell[DATUM],\"<=\"&I19),NA())","v":{"$error":"#N/A"}}]
[{"$f":"IF((Viktminskningsöversikt!C41=0)*(Viktminskningsöversikt!C40=0),TRUE)","v":true},{"$f":"IF(A20,0,IF(Viktminskningsöversikt!B41=0,Viktminskningsöversikt!B40+5,Viktminskningsöversikt!B41))","v":"00:00:00"},{"$f":"Viktminskningsöversikt!C41","v":0},{"$nulls":4},{"$error":"#N/A"},{"$error":"#N/A"},{"$f":"IFERROR(AVERAGEIFS(vikttabell[VIKT],vikttabell[DATUM],\">=\"&H20,vikttabell[DATUM],\"<=\"&I20),NA())","v":{"$error":"#N/A"}}]
[{"$f":"IF((Viktminskningsöversikt!C42=0)*(Viktminskningsöversikt!C41=0),TRUE)","v":true},{"$f":"IF(A21,0,IF(Viktminskningsöversikt!B42=0,Viktminskningsöversikt!B41+5,Viktminskningsöversikt!B42))","v":"00:00:00"},{"$f":"Viktminskningsöversikt!C42","v":0},{"$nulls":4},{"$error":"#N/A"},{"$error":"#N/A"},{"$f":"IFERROR(AVERAGEIFS(vikttabell[VIKT],vikttabell[DATUM],\">=\"&H21,vikttabell[DATUM],\"<=\"&I21),NA())","v":{"$error":"#N/A"}}]
[{"$f":"IF((Viktminskningsöversikt!C43=0)*(Viktminskningsöversikt!C42=0),TRUE)","v":true},{"$f":"IF(A22,0,IF(Viktminskningsöversikt!B43=0,Viktminskningsöversikt!B42+5,Viktminskningsöversikt!B43))","v":"00:00:00"},{"$f":"Viktminskningsöversikt!C43","v":0},{"$nulls":4},{"$error":"#N/A"},{"$error":"#N/A"},{"$f":"IFERROR(AVERAGEIFS(vikttabell[VIKT],vikttabell[DATUM],\">=\"&H22,vikttabell[DATUM],\"<=\"&I22),NA())","v":{"$error":"#N/A"}}]
[{"$f":"IF((Viktminskningsöversikt!C44=0)*(Viktminskningsöversikt!C43=0),TRUE)","v":true},{"$f":"IF(A23,0,IF(Viktminskningsöversikt!B44=0,Viktminskningsöversikt!B43+5,Viktminskningsöversikt!B44))","v":"00:00:00"},{"$f":"Viktminskningsöversikt!C44","v":0},{"$nulls":4},{"$error":"#N/A"},{"$error":"#N/A"},{"$f":"IFERROR(AVERAGEIFS(vikttabell[VIKT],vikttabell[DATUM],\">=\"&H23,vikttabell[DATUM],\"<=\"&I23),NA())","v":{"$error":"#N/A"}}]
[{"$f":"IF((Viktminskningsöversikt!C45=0)*(Viktminskningsöversikt!C44=0),TRUE)","v":true},{"$f":"IF(A24,0,IF(Viktminskningsöversikt!B45=0,Viktminskningsöversikt!B44+5,Viktminskningsöversikt!B45))","v":"00:00:00"},{"$f":"Viktminskningsöversikt!C45","v":0},{"$nulls":4},{"$error":"#N/A"},{"$error":"#N/A"},{"$f":"IFERROR(AVERAGEIFS(vikttabell[VIKT],vikttabell[DATUM],\">=\"&H24,vikttabell[DATUM],\"<=\"&I24),NA())","v":{"$error":"#N/A"}}]
[{"$f":"IF((Viktminskningsöversikt!C46=0)*(Viktminskningsöversikt!C45=0),TRUE)","v":true},{"$f":"IF(A25,0,IF(Viktminskningsöversikt!B46=0,Viktminskningsöversikt!B45+5,Viktminskningsöversikt!B46))","v":"00:00:00"},{"$f":"Viktminskningsöversikt!C46","v":0},{"$nulls":4},{"$error":"#N/A"},{"$error":"#N/A"},{"$f":"IFERROR(AVERAGEIFS(vikttabell[VIKT],vikttabell[DATUM],\">=\"&H25,vikttabell[DATUM],\"<=\"&I25),NA())","v":{"$error":"#N/A"}}]
[{"$f":"IF((Viktminskningsöversikt!C47=0)*(Viktminskningsöversikt!C46=0),TRUE)","v":true},{"$f":"IF(A26,0,IF(Viktminskningsöversikt!B47=0,Viktminskningsöversikt!B46+5,Viktminskningsöversikt!B47))","v":"00:00:00"},{"$f":"Viktminskningsöversikt!C47","v":0},{"$nulls":4},{"$error":"#N/A"},{"$error":"#N/A"},{"$f":"IFERROR(AVERAGEIFS(vikttabell[VIKT],vikttabell[DATUM],\">=\"&H26,vikttabell[DATUM],\"<=\"&I26),NA())","v":{"$error":"#N/A"}}]
[{"$f":"IF((Viktminskningsöversikt!C48=0)*(Viktminskningsöversikt!C47=0),TRUE)","v":true},{"$f":"IF(A27,0,IF(Viktminskningsöversikt!B48=0,Viktminskningsöversikt!B47+5,Viktminskningsöversikt!B48))","v":"00:00:00"},{"$f":"Viktminskningsöversikt!C48","v":0},{"$nulls":4},{"$error":"#N/A"},{"$error":"#N/A"},{"$f":"IFERROR(AVERAGEIFS(vikttabell[VIKT],vikttabell[DATUM],\">=\"&H27,vikttabell[DATUM],\"<=\"&I27),NA())","v":{"$error":"#N/A"}}]
[{"$f":"IF((Viktminskningsöversikt!C49=0)*(Viktminskningsöversikt!C48=0),TRUE)","v":true},{"$f":"IF(A28,0,IF(Viktminskningsöversikt!B49=0,Viktminskningsöversikt!B48+5,Viktminskningsöversikt!B49))","v":"00:00:00"},{"$f":"Viktminskningsöversikt!C49","v":0},{"$nulls":4},{"$error":"#N/A"},{"$error":"#N/A"},{"$f":"IFERROR(AVERAGEIFS(vikttabell[VIKT],vikttabell[DATUM],\">=\"&H28,vikttabell[DATUM],\"<=\"&I28),NA())","v":{"$error":"#N/A"}}]
[{"$f":"IF((Viktminskningsöversikt!C50=0)*(Viktminskningsöversikt!C49=0),TRUE)","v":true},{"$f":"IF(A29,0,IF(Viktminskningsöversikt!B50=0,Viktminskningsöversikt!B49+5,Viktminskningsöversikt!B50))","v":"00:00:00"},{"$f":"Viktminskningsöversikt!C50","v":0}]
[{"$f":"IF((Viktminskningsöversikt!C51=0)*(Viktminskningsöversikt!C50=0),TRUE)","v":true},{"$f":"IF(A30,0,IF(Viktminskningsöversikt!B51=0,Viktminskningsöversikt!B50+5,Viktminskningsöversikt!B51))","v":"00:00:00"},{"$f":"Viktminskningsöversikt!C51","v":0}]
[{"$f":"IF((Viktminskningsöversikt!C52=0)*(Viktminskningsöversikt!C51=0),TRUE)","v":true},{"$f":"IF(A31,0,IF(Viktminskningsöversikt!B52=0,Viktminskningsöversikt!B51+5,Viktminskningsöversikt!B52))","v":"00:00:00"},{"$f":"Viktminskningsöversikt!C52","v":0}]
[{"$f":"IF((Viktminskningsöversikt!C53=0)*(Viktminskningsöversikt!C52=0),TRUE)","v":true},{"$f":"IF(A32,0,IF(Viktminskningsöversikt!B53=0,Viktminskningsöversikt!B52+5,Viktminskningsöversikt!B53))","v":"00:00:00"},{"$f":"Viktminskningsöversikt!C53","v":0}]
[{"$f":"IF((Viktminskningsöversikt!C54=0)*(Viktminskningsöversikt!C53=0),TRUE)","v":true},{"$f":"IF(A33,0,IF(Viktminskningsöversikt!B54=0,Viktminskningsöversikt!B53+5,Viktminskningsöversikt!B54))","v":"00:00:00"},{"$f":"Viktminskningsöversikt!C54","v":0}]
[{"$f":"IF((Viktminskningsöversikt!C55=0)*(Viktminskningsöversikt!C54=0),TRUE)","v":true},{"$f":"IF(A34,0,IF(Viktminskningsöversikt!B55=0,Viktminskningsöversikt!B54+5,Viktminskningsöversikt!B55))","v":"00:00:00"},{"$f":"Viktminskningsöversikt!C55","v":0}]
[{"$f":"IF((Viktminskningsöversikt!C56=0)*(Viktminskningsöversikt!C55=0),TRUE)","v":true},{"$f":"IF(A35,0,IF(Viktminskningsöversikt!B56=0,Viktminskningsöversikt!B55+5,Viktminskningsöversikt!B56))","v":"00:00:00"},{"$f":"Viktminskningsöversikt!C56","v":0}]
[{"$f":"IF((Viktminskningsöversikt!C57=0)*(Viktminskningsöversikt!C56=0),TRUE)","v":true},{"$f":"IF(A36,0,IF(Viktminskningsöversikt!B57=0,Viktminskningsöversikt!B56+5,Viktminskningsöversikt!B57))","v":"00:00:00"},{"$f":"Viktminskningsöversikt!C57","v":0}]
[{"$f":"IF((Viktminskningsöversikt!C58=0)*(Viktminskningsöversikt!C57=0),TRUE)","v":true},{"$f":"IF(A37,0,IF(Viktminskningsöversikt!B58=0,Viktminskningsöversikt!B57+5,Viktminskningsöversikt!B58))","v":"00:00:00"},{"$f":"Viktminskningsöversikt!C58","v":0}]
[{"$f":"IF((Viktminskningsöversikt!C59=0)*(Viktminskningsöversikt!C58=0),TRUE)","v":true},{"$f":"IF(A38,0,IF(Viktminskningsöversikt!B59=0,Viktminskningsöversikt!B58+5,Viktminskningsöversikt!B59))","v":"00:00:00"},{"$f":"Viktminskningsöversikt!C59","v":0}]
[{"$f":"IF((Viktminskningsöversikt!C60=0)*(Viktminskningsöversikt!C59=0),TRUE)","v":true},{"$f":"IF(A39,0,IF(Viktminskningsöversikt!B60=0,Viktminskningsöversikt!B59+5,Viktminskningsöversikt!B60))","v":"00:00:00"},{"$f":"Viktminskningsöversikt!C60","v":0}]
[{"$f":"IF((Viktminskningsöversikt!C61=0)*(Viktminskningsöversikt!C60=0),TRUE)","v":true},{"$f":"IF(A40,0,IF(Viktminskningsöversikt!B61=0,Viktminskningsöversikt!B60+5,Viktminskningsöversikt!B61))","v":"00:00:00"},{"$f":"Viktminskningsöversikt!C61","v":0}]
[{"$f":"IF((Viktminskningsöversikt!C62=0)*(Viktminskningsöversikt!C61=0),TRUE)","v":true},{"$f":"IF(A41,0,IF(Viktminskningsöversikt!B62=0,Viktminskningsöversikt!B61+5,Viktminskningsöversikt!B62))","v":"00:00:00"},{"$f":"Viktminskningsöversikt!C62","v":0}]
[{"$f":"IF((Viktminskningsöversikt!C63=0)*(Viktminskningsöversikt!C62=0),TRUE)","v":true},{"$f":"IF(A42,0,IF(Viktminskningsöversikt!B63=0,Viktminskningsöversikt!B62+5,Viktminskningsöversikt!B63))","v":"00:00:00"},{"$f":"Viktminskningsöversikt!C63","v":0}]
[{"$f":"IF((Viktminskningsöversikt!C64=0)*(Viktminskningsöversikt!C63=0),TRUE)","v":true},{"$f":"IF(A43,0,IF(Viktminskningsöversikt!B64=0,Viktminskningsöversikt!B63+5,Viktminskningsöversikt!B64))","v":"00:00:00"},{"$f":"Viktminskningsöversikt!C64","v":0}]
[{"$f":"IF((Viktminskningsöversikt!C65=0)*(Viktminskningsöversikt!C64=0),TRUE)","v":true},{"$f":"IF(A44,0,IF(Viktminskningsöversikt!B65=0,Viktminskningsöversikt!B64+5,Viktminskningsöversikt!B65))","v":"00:00:00"},{"$f":"Viktminskningsöversikt!C65","v":0}]
[{"$f":"IF((Viktminskningsöversikt!C66=0)*(Viktminskningsöversikt!C65=0),TRUE)","v":true},{"$f":"IF(A45,0,IF(Viktminskningsöversikt!B66=0,Viktminskningsöversikt!B65+5,Viktminskningsöversikt!B66))","v":"00:00:00"},{"$f":"Viktminskningsöversikt!C66","v":0}]
[{"$f":"IF((Viktminskningsöversikt!C67=0)*(Viktminskningsöversikt!C66=0),TRUE)","v":true},{"$f":"IF(A46,0,IF(Viktminskningsöversikt!B67=0,Viktminskningsöversikt!B66+5,Viktminskningsöversikt!B67))","v":"00:00:00"},{"$f":"Viktminskningsöversikt!C67","v":0}]
[{"$f":"IF((Viktminskningsöversikt!C68=0)*(Viktminskningsöversikt!C67=0),TRUE)","v":true},{"$f":"IF(A47,0,IF(Viktminskningsöversikt!B68=0,Viktminskningsöversikt!B67+5,Viktminskningsöversikt!B68))","v":"00:00:00"},{"$f":"Viktminskningsöversikt!C68","v":0}]
[{"$f":"IF((Viktminskningsöversikt!C69=0)*(Viktminskningsöversikt!C68=0),TRUE)","v":true},{"$f":"IF(A48,0,IF(Viktminskningsöversikt!B69=0,Viktminskningsöversikt!B68+5,Viktminskningsöversikt!B69))","v":"00:00:00"},{"$f":"Viktminskningsöversikt!C69","v":0}]
[{"$f":"IF((Viktminskningsöversikt!C70=0)*(Viktminskningsöversikt!C69=0),TRUE)","v":true},{"$f":"IF(A49,0,IF(Viktminskningsöversikt!B70=0,Viktminskningsöversikt!B69+5,Viktminskningsöversikt!B70))","v":"00:00:00"},{"$f":"Viktminskningsöversikt!C70","v":0}]
[{"$f":"IF((Viktminskningsöversikt!C71=0)*(Viktminskningsöversikt!C70=0),TRUE)","v":true},{"$f":"IF(A50,0,IF(Viktminskningsöversikt!B71=0,Viktminskningsöversikt!B70+5,Viktminskningsöversikt!B71))","v":"00:00:00"},{"$f":"Viktminskningsöversikt!C71","v":0}]
[{"$f":"IF((Viktminskningsöversikt!C72=0)*(Viktminskningsöversikt!C71=0),TRUE)","v":true},{"$f":"IF(A51,0,IF(Viktminskningsöversikt!B72=0,Viktminskningsöversikt!B71+5,Viktminskningsöversikt!B72))","v":"00:00:00"},{"$f":"Viktminskningsöversikt!C72","v":0}]
[{"$f":"IF((Viktminskningsöversikt!C73=0)*(Viktminskningsöversikt!C72=0),TRUE)","v":true},{"$f":"IF(A52,0,IF(Viktminskningsöversikt!B73=0,Viktminskningsöversikt!B72+5,Viktminskningsöversikt!B73))","v":"00:00:00"},{"$f":"Viktminskningsöversikt!C73","v":0}]
[{"$f":"IF((Viktminskningsöversikt!C74=0)*(Viktminskningsöversikt!C73=0),TRUE)","v":true},{"$f":"IF(A53,0,IF(Viktminskningsöversikt!B74=0,Viktminskningsöversikt!B73+5,Viktminskningsöversikt!B74))","v":"00:00:00"},{"$f":"Viktminskningsöversikt!C74","v":0}]
[{"$f":"IF((Viktminskningsöversikt!C75=0)*(Viktminskningsöversikt!C74=0),TRUE)","v":true},{"$f":"IF(A54,0,IF(Viktminskningsöversikt!B75=0,Viktminskningsöversikt!B74+5,Viktminskningsöversikt!B75))","v":"00:00:00"},{"$f":"Viktminskningsöversikt!C75","v":0}]
[{"$f":"IF((Viktminskningsöversikt!C76=0)*(Viktminskningsöversikt!C75=0),TRUE)","v":true},{"$f":"IF(A55,0,IF(Viktminskningsöversikt!B76=0,Viktminskningsöversikt!B75+5,Viktminskningsöversikt!B76))","v":"00:00:00"},{"$f":"Viktminskningsöversikt!C76","v":0}]
[{"$f":"IF((Viktminskningsöversikt!C77=0)*(Viktminskningsöversikt!C76=0),TRUE)","v":true},{"$f":"IF(A56,0,IF(Viktminskningsöversikt!B77=0,Viktminskningsöversikt!B76+5,Viktminskningsöversikt!B77))","v":"00:00:00"},{"$f":"Viktminskningsöversikt!C77","v":0}]
[{"$f":"IF((Viktminskningsöversikt!C78=0)*(Viktminskningsöversikt!C77=0),TRUE)","v":true},{"$f":"IF(A57,0,IF(Viktminskningsöversikt!B78=0,Viktminskningsöversikt!B77+5,Viktminskningsöversikt!B78))","v":"00:00:00"},{"$f":"Viktminskningsöversikt!C78","v":0}]
[{"$f":"IF((Viktminskningsöversikt!C79=0)*(Viktminskningsöversikt!C78=0),TRUE)","v":true},{"$f":"IF(A58,0,IF(Viktminskningsöversikt!B79=0,Viktminskningsöversikt!B78+5,Viktminskningsöversikt!B79))","v":"00:00:00"},{"$f":"Viktminskningsöversikt!C79","v":0}]
[{"$f":"IF((Viktminskningsöversikt!C80=0)*(Viktminskningsöversikt!C79=0),TRUE)","v":true},{"$f":"IF(A59,0,IF(Viktminskningsöversikt!B80=0,Viktminskningsöversikt!B79+5,Viktminskningsöversikt!B80))","v":"00:00:00"},{"$f":"Viktminskningsöversikt!C80","v":0}]
[{"$f":"IF((Viktminskningsöversikt!C81=0)*(Viktminskningsöversikt!C80=0),TRUE)","v":true},{"$f":"IF(A60,0,IF(Viktminskningsöversikt!B81=0,Viktminskningsöversikt!B80+5,Viktminskningsöversikt!B81))","v":"00:00:00"},{"$f":"Viktminskningsöversikt!C81","v":0}]
[{"$f":"IF((Viktminskningsöversikt!C82=0)*(Viktminskningsöversikt!C81=0),TRUE)","v":true},{"$f":"IF(A61,0,IF(Viktminskningsöversikt!B82=0,Viktminskningsöversikt!B81+5,Viktminskningsöversikt!B82))","v":"00:00:00"},{"$f":"Viktminskningsöversikt!C82","v":0}]
[{"$f":"IF((Viktminskningsöversikt!C83=0)*(Viktminskningsöversikt!C82=0),TRUE)","v":true},{"$f":"IF(A62,0,IF(Viktminskningsöversikt!B83=0,Viktminskningsöversikt!B82+5,Viktminskningsöversikt!B83))","v":"00:00:00"},{"$f":"Viktminskningsöversikt!C83","v":0}]
[{"$f":"IF((Viktminskningsöversikt!C84=0)*(Viktminskningsöversikt!C83=0),TRUE)","v":true},{"$f":"IF(A63,0,IF(Viktminskningsöversikt!B84=0,Viktminskningsöversikt!B83+5,Viktminskningsöversikt!B84))","v":"00:00:00"},{"$f":"Viktminskningsöversikt!C84","v":0}]
[{"$f":"IF((Viktminskningsöversikt!C85=0)*(Viktminskningsöversikt!C84=0),TRUE)","v":true},{"$f":"IF(A64,0,IF(Viktminskningsöversikt!B85=0,Viktminskningsöversikt!B84+5,Viktminskningsöversikt!B85))","v":"00:00:00"},{"$f":"Viktminskningsöversikt!C85","v":0}]
[{"$f":"IF((Viktminskningsöversikt!C86=0)*(Viktminskningsöversikt!C85=0),TRUE)","v":true},{"$f":"IF(A65,0,IF(Viktminskningsöversikt!B86=0,Viktminskningsöversikt!B85+5,Viktminskningsöversikt!B86))","v":"00:00:00"},{"$f":"Viktminskningsöversikt!C86","v":0}]
[{"$f":"IF((Viktminskningsöversikt!C87=0)*(Viktminskningsöversikt!C86=0),TRUE)","v":true},{"$f":"IF(A66,0,IF(Viktminskningsöversikt!B87=0,Viktminskningsöversikt!B86+5,Viktminskningsöversikt!B87))","v":"00:00:00"},{"$f":"Viktminskningsöversikt!C87","v":0}]
[{"$f":"IF((Viktminskningsöversikt!C88=0)*(Viktminskningsöversikt!C87=0),TRUE)","v":true},{"$f":"IF(A67,0,IF(Viktminskningsöversikt!B88=0,Viktminskningsöversikt!B87+5,Viktminskningsöversikt!B88))","v":"00:00:00"},{"$f":"Viktminskningsöversikt!C88","v":0}]
[{"$f":"IF((Viktminskningsöversikt!C89=0)*(Viktminskningsöversikt!C88=0),TRUE)","v":true},{"$f":"IF(A68,0,IF(Viktminskningsöversikt!B89=0,Viktminskningsöversikt!B88+5,Viktminskningsöversikt!B89))","v":"00:00:00"},{"$f":"Viktminskningsöversikt!C89","v":0}]
[{"$f":"IF((Viktminskningsöversikt!C90=0)*(Viktminskningsöversikt!C89=0),TRUE)","v":true},{"$f":"IF(A69,0,IF(Viktminskningsöversikt!B90=0,Viktminskningsöversikt!B89+5,Viktminskningsöversikt!B90))","v":"00:00:00"},{"$f":"Viktminskningsöversikt!C90","v":0}]
[{"$f":"IF((Viktminskningsöversikt!C91=0)*(Viktminskningsöversikt!C90=0),TRUE)","v":true},{"$f":"IF(A70,0,IF(Viktminskningsöversikt!B91=0,Viktminskningsöversikt!B90+5,Viktminskningsöversikt!B91))","v":"00:00:00"},{"$f":"Viktminskningsöversikt!C91","v":0}]
[{"$f":"IF((Viktminskningsöversikt!C92=0)*(Viktminskningsöversikt!C91=0),TRUE)","v":true},{"$f":"IF(A71,0,IF(Viktminskningsöversikt!B92=0,Viktminskningsöversikt!B91+5,Viktminskningsöversikt!B92))","v":"00:00:00"},{"$f":"Viktminskningsöversikt!C92","v":0}]
[{"$f":"IF((Viktminskningsöversikt!C93=0)*(Viktminskningsöversikt!C92=0),TRUE)","v":true},{"$f":"IF(A72,0,IF(Viktminskningsöversikt!B93=0,Viktminskningsöversikt!B92+5,Viktminskningsöversikt!B93))","v":"00:00:00"},{"$f":"Viktminskningsöversikt!C93","v":0}]
[{"$f":"IF((Viktminskningsöversikt!C94=0)*(Viktminskningsöversikt!C93=0),TRUE)","v":true},{"$f":"IF(A73,0,IF(Viktminskningsöversikt!B94=0,Viktminskningsöversikt!B93+5,Viktminskningsöversikt!B94))","v":"00:00:00"},{"$f":"Viktminskningsöversikt!C94","v":0}]
[{"$f":"IF((Viktminskningsöversikt!C95=0)*(Viktminskningsöversikt!C94=0),TRUE)","v":true},{"$f":"IF(A74,0,IF(Viktminskningsöversikt!B95=0,Viktminskningsöversikt!B94+5,Viktminskningsöversikt!B95))","v":"00:00:00"},{"$f":"Viktminskningsöversikt!C95","v":0}]
[{"$f":"IF((Viktminskningsöversikt!C96=0)*(Viktminskningsöversikt!C95=0),TRUE)","v":true},{"$f":"IF(A75,0,IF(Viktminskningsöversikt!B96=0,Viktminskningsöversikt!B95+5,Viktminskningsöversikt!B96))","v":"00:00:00"},{"$f":"Viktminskningsöversikt!C96","v":0}]
[{"$f":"IF((Viktminskningsöversikt!C97=0)*(Viktminskningsöversikt!C96=0),TRUE)","v":true},{"$f":"IF(A76,0,IF(Viktminskningsöversikt!B97=0,Viktminskningsöversikt!B96+5,Viktminskningsöversikt!B97))","v":"00:00:00"},{"$f":"Viktminskningsöversikt!C97","v":0}]
[{"$f":"IF((Viktminskningsöversikt!C98=0)*(Viktminskningsöversikt!C97=0),TRUE)","v":true},{"$f":"IF(A77,0,IF(Viktminskningsöversikt!B98=0,Viktminskningsöversikt!B97+5,Viktminskningsöversikt!B98))","v":"00:00:00"},{"$f":"Viktminskningsöversikt!C98","v":0}]
[{"$f":"IF((Viktminskningsöversikt!C99=0)*(Viktminskningsöversikt!C98=0),TRUE)","v":true},{"$f":"IF(A78,0,IF(Viktminskningsöversikt!B99=0,Viktminskningsöversikt!B98+5,Viktminskningsöversikt!B99))","v":"00:00:00"},{"$f":"Viktminskningsöversikt!C99","v":0}]
[{"$f":"IF((Viktminskningsöversikt!C100=0)*(Viktminskningsöversikt!C99=0),TRUE)","v":true},{"$f":"IF(A79,0,IF(Viktminskningsöversikt!B100=0,Viktminskningsöversikt!B99+5,Viktminskningsöversikt!B100))","v":"00:00:00"},{"$f":"Viktminskningsöversikt!C100","v":0}]
[{"$f":"IF((Viktminskningsöversikt!C101=0)*(Viktminskningsöversikt!C100=0),TRUE)","v":true},{"$f":"IF(A80,0,IF(Viktminskningsöversikt!B101=0,Viktminskningsöversikt!B100+5,Viktminskningsöversikt!B101))","v":"00:00:00"},{"$f":"Viktminskningsöversikt!C101","v":0}]
[{"$f":"IF((Viktminskningsöversikt!C102=0)*(Viktminskningsöversikt!C101=0),TRUE)","v":true},{"$f":"IF(A81,0,IF(Viktminskningsöversikt!B102=0,Viktminskningsöversikt!B101+5,Viktminskningsöversikt!B102))","v":"00:00:00"},{"$f":"Viktminskningsöversikt!C102","v":0}]
[{"$f":"IF((Viktminskningsöversikt!C103=0)*(Viktminskningsöversikt!C102=0),TRUE)","v":true},{"$f":"IF(A82,0,IF(Viktminskningsöversikt!B103=0,Viktminskningsöversikt!B102+5,Viktminskningsöversikt!B103))","v":"00:00:00"},{"$f":"Viktminskningsöversikt!C103","v":0}]
[{"$f":"IF((Viktminskningsöversikt!C104=0)*(Viktminskningsöversikt!C103=0),TRUE)","v":true},{"$f":"IF(A83,0,IF(Viktminskningsöversikt!B104=0,Viktminskningsöversikt!B103+5,Viktminskningsöversikt!B104))","v":"00:00:00"},{"$f":"Viktminskningsöversikt!C104","v":0}]
[{"$f":"IF((Viktminskningsöversikt!C105=0)*(Viktminskningsöversikt!C104=0),TRUE)","v":true},{"$f":"IF(A84,0,IF(Viktminskningsöversikt!B105=0,Viktminskningsöversikt!B104+5,Viktminskningsöversikt!B105))","v":"00:00:00"},{"$f":"Viktminskningsöversikt!C105","v":0}]
[{"$f":"IF((Viktminskningsöversikt!C106=0)*(Viktminskningsöversikt!C105=0),TRUE)","v":true},{"$f":"IF(A85,0,IF(Viktminskningsöversikt!B106=0,Viktminskningsöversikt!B105+5,Viktminskningsöversikt!B106))","v":"00:00:00"},{"$f":"Viktminskningsöversikt!C106","v":0}]
[{"$f":"IF((Viktminskningsöversikt!C107=0)*(Viktminskningsöversikt!C106=0),TRUE)","v":true},{"$f":"IF(A86,0,IF(Viktminskningsöversikt!B107=0,Viktminskningsöversikt!B106+5,Viktminskningsöversikt!B107))","v":"00:00:00"},{"$f":"Viktminskningsöversikt!C107","v":0}]
[{"$f":"IF((Viktminskningsöversikt!C108=0)*(Viktminskningsöversikt!C107=0),TRUE)","v":true},{"$f":"IF(A87,0,IF(Viktminskningsöversikt!B108=0,Viktminskningsöversikt!B107+5,Viktminskningsöversikt!B108))","v":"00:00:00"},{"$f":"Viktminskningsöversikt!C108","v":0}]
[{"$f":"IF((Viktminskningsöversikt!C109=0)*(Viktminskningsöversikt!C108=0),TRUE)","v":true},{"$f":"IF(A88,0,IF(Viktminskningsöversikt!B109=0,Viktminskningsöversikt!B108+5,Viktminskningsöversikt!B109))","v":"00:00:00"},{"$f":"Viktminskningsöversikt!C109","v":0}]
[{"$f":"IF((Viktminskningsöversikt!C110=0)*(Viktminskningsöversikt!C109=0),TRUE)","v":true},{"$f":"IF(A89,0,IF(Viktminskningsöversikt!B110=0,Viktminskningsöversikt!B109+5,Viktminskningsöversikt!B110))","v":"00:00:00"},{"$f":"Viktminskningsöversikt!C110","v":0}]
[{"$f":"IF((Viktminskningsöversikt!C111=0)*(Viktminskningsöversikt!C110=0),TRUE)","v":true},{"$f":"IF(A90,0,IF(Viktminskningsöversikt!B111=0,Viktminskningsöversikt!B110+5,Viktminskningsöversikt!B111))","v":"00:00:00"},{"$f":"Viktminskningsöversikt!C111","v":0}]
[{"$f":"IF((Viktminskningsöversikt!C112=0)*(Viktminskningsöversikt!C111=0),TRUE)","v":true},{"$f":"IF(A91,0,IF(Viktminskningsöversikt!B112=0,Viktminskningsöversikt!B111+5,Viktminskningsöversikt!B112))","v":"00:00:00"},{"$f":"Viktminskningsöversikt!C112","v":0}]
[{"$f":"IF((Viktminskningsöversikt!C113=0)*(Viktminskningsöversikt!C112=0),TRUE)","v":true},{"$f":"IF(A92,0,IF(Viktminskningsöversikt!B113=0,Viktminskningsöversikt!B112+5,Viktminskningsöversikt!B113))","v":"00:00:00"},{"$f":"Viktminskningsöversikt!C113","v":0}]
[{"$f":"IF((Viktminskningsöversikt!C114=0)*(Viktminskningsöversikt!C113=0),TRUE)","v":true},{"$f":"IF(A93,0,IF(Viktminskningsöversikt!B114=0,Viktminskningsöversikt!B113+5,Viktminskningsöversikt!B114))","v":"00:00:00"},{"$f":"Viktminskningsöversikt!C114","v":0}]
[{"$f":"IF((Viktminskningsöversikt!C115=0)*(Viktminskningsöversikt!C114=0),TRUE)","v":true},{"$f":"IF(A94,0,IF(Viktminskningsöversikt!B115=0,Viktminskningsöversikt!B114+5,Viktminskningsöversikt!B115))","v":"00:00:00"},{"$f":"Viktminskningsöversikt!C115","v":0}]
[{"$f":"IF((Viktminskningsöversikt!C116=0)*(Viktminskningsöversikt!C115=0),TRUE)","v":true},{"$f":"IF(A95,0,IF(Viktminskningsöversikt!B116=0,Viktminskningsöversikt!B115+5,Viktminskningsöversikt!B116))","v":"00:00:00"},{"$f":"Viktminskningsöversikt!C116","v":0}]
[{"$f":"IF((Viktminskningsöversikt!C117=0)*(Viktminskningsöversikt!C116=0),TRUE)","v":true},{"$f":"IF(A96,0,IF(Viktminskningsöversikt!B117=0,Viktminskningsöversikt!B116+5,Viktminskningsöversikt!B117))","v":"00:00:00"},{"$f":"Viktminskningsöversikt!C117","v":0}]
[{"$f":"IF((Viktminskningsöversikt!C118=0)*(Viktminskningsöversikt!C117=0),TRUE)","v":true},{"$f":"IF(A97,0,IF(Viktminskningsöversikt!B118=0,Viktminskningsöversikt!B117+5,Viktminskningsöversikt!B118))","v":"00:00:00"},{"$f":"Viktminskningsöversikt!C118","v":0}]
[{"$f":"IF((Viktminskningsöversikt!C119=0)*(Viktminskningsöversikt!C118=0),TRUE)","v":true},{"$f":"IF(A98,0,IF(Viktminskningsöversikt!B119=0,Viktminskningsöversikt!B118+5,Viktminskningsöversikt!B119))","v":"00:00:00"},{"$f":"Viktminskningsöversikt!C119","v":0}]
[{"$f":"IF((Viktminskningsöversikt!C120=0)*(Viktminskningsöversikt!C119=0),TRUE)","v":true},{"$f":"IF(A99,0,IF(Viktminskningsöversikt!B120=0,Viktminskningsöversikt!B119+5,Viktminskningsöversikt!B120))","v":"00:00:00"},{"$f":"Viktminskningsöversikt!C120","v":0}]
[{"$f":"IF((Viktminskningsöversikt!C121=0)*(Viktminskningsöversikt!C120=0),TRUE)","v":true},{"$f":"IF(A100,0,IF(Viktminskningsöversikt!B121=0,Viktminskningsöversikt!B120+5,Viktminskningsöversikt!B121))","v":"00:00:00"},{"$f":"Viktminskningsöversikt!C121","v":0}]
[{"$f":"IF((Viktminskningsöversikt!C122=0)*(Viktminskningsöversikt!C121=0),TRUE)","v":true},{"$f":"IF(A101,0,IF(Viktminskningsöversikt!B122=0,Viktminskningsöversikt!B121+5,Viktminskningsöversikt!B122))","v":"00:00:00"},{"$f":"Viktminskningsöversikt!C122","v":0}]
[{"$f":"IF((Viktminskningsöversikt!C123=0)*(Viktminskningsöversikt!C122=0),TRUE)","v":true},{"$f":"IF(A102,0,IF(Viktminskningsöversikt!B123=0,Viktminskningsöversikt!B122+5,Viktminskningsöversikt!B123))","v":"00:00:00"},{"$f":"Viktminskningsöversikt!C123","v":0}]
[{"$f":"IF((Viktminskningsöversikt!C124=0)*(Viktminskningsöversikt!C123=0),TRUE)","v":true},{"$f":"IF(A103,0,IF(Viktminskningsöversikt!B124=0,Viktminskningsöversikt!B123+5,Viktminskningsöversikt!B124))","v":"00:00:00"},{"$f":"Viktminskningsöversikt!C124","v":0}]
[{"$f":"IF((Viktminskningsöversikt!C125=0)*(Viktminskningsöversikt!C124=0),TRUE)","v":true},{"$f":"IF(A104,0,IF(Viktminskningsöversikt!B125=0,Viktminskningsöversikt!B124+5,Viktminskningsöversikt!B125))","v":"00:00:00"},{"$f":"Viktminskningsöversikt!C125","v":0}]
[{"$f":"IF((Viktminskningsöversikt!C126=0)*(Viktminskningsöversikt!C125=0),TRUE)","v":true},{"$f":"IF(A105,0,IF(Viktminskningsöversikt!B126=0,Viktminskningsöversikt!B125+5,Viktminskningsöversikt!B126))","v":"00:00:00"},{"$f":"Viktminskningsöversikt!C126","v":0}]
[{"$f":"IF((Viktminskningsöversikt!C127=0)*(Viktminskningsöversikt!C126=0),TRUE)","v":true},{"$f":"IF(A106,0,IF(Viktminskningsöversikt!B127=0,Viktminskningsöversikt!B126+5,Viktminskningsöversikt!B127))","v":"00:00:00"},{"$f":"Viktminskningsöversikt!C127","v":0}]
[{"$f":"IF((Viktminskningsöversikt!C128=0)*(Viktminskningsöversikt!C127=0),TRUE)","v":true},{"$f":"IF(A107,0,IF(Viktminskningsöversikt!B128=0,Viktminskningsöversikt!B127+5,Viktminskningsöversikt!B128))","v":"00:00:00"},{"$f":"Viktminskningsöversikt!C128","v":0}]
[{"$f":"IF((Viktminskningsöversikt!C129=0)*(Viktminskningsöversikt!C128=0),TRUE)","v":true},{"$f":"IF(A108,0,IF(Viktminskningsöversikt!B129=0,Viktminskningsöversikt!B128+5,Viktminskningsöversikt!B129))","v":"00:00:00"},{"$f":"Viktminskningsöversikt!C129","v":0}]